{"text_format":"3","workbook":"xlsx","n_sheets":4,"sheets":["Finanční tok","Měsíční příjmy","Měsíční výdaje","DATA GRAFU"],"not_rendered":{"charts":1,"defined_names":10},"read":"whole","date_system":"1900"}

{"sheet":"Finanční tok","index":0,"n_rows":9,"n_cols":5,"rows_kept":9}
[null,"Název"]
[null,"Rodinný rozpočet"]
[null,{"$f":"TEXT(TODAY(),\"mmmm\")","v":"leden"}]
[null,{"$f":"YEAR(TODAY())","v":2017}]
[null,"Poznámka: Tabulka Finanční tok se počítá automaticky na základě hodnot zadaných na listy Měsíční příjmy a Měsíční výdaje."]
[null,"Finanční tok","Předpoklad","Skutečnost","Rozdíl"]
[null,"Celkové příjmy",{"$f":"Příjmy[[#Totals],[Předpoklad]]","v":{"v":57000,"d":"57,000"}},{"$f":"Příjmy[[#Totals],[Skutečnost]]","v":{"v":55000,"d":"55,000"}},{"$f":"Příjmy[[#Totals],[Rozdíl]]","v":{"v":-2000,"d":"-2,000"}}]
[null,"Celkové výdaje",{"$f":"Výdaje[[#Totals],[Předpoklad]]","v":{"v":53720,"d":"53,720"}},{"$f":"Výdaje[[#Totals],[Skutečnost]]","v":{"v":53780,"d":"53,780"}},{"$f":"Výdaje[[#Totals],[Rozdíl]]","v":-60}]
[null,"Celkový zůstatek",{"$f":"C7-C8","v":{"v":3280,"d":"3,280"}},{"$f":"D7-D8","v":{"v":1220,"d":"1,220"}},{"$f":"SUBTOTAL(109,FinančníTok[Rozdíl])","v":{"v":-2060,"d":"-2,060"}}]

{"sheet":"Měsíční příjmy","index":1,"n_rows":9,"n_cols":5,"rows_kept":9}
[null,{"$f":"Jméno","v":"Název"}]
[null,{"$f":"NadpisRozpočtu","v":"Rodinný rozpočet"}]
[null,{"$f":"Měsíc","v":"leden"}]
[null,{"$f":"Rok","v":2017}]
[null,"Měsíční příjmy","Předpoklad","Skutečnost","Rozdíl"]
[null,"Příjem 1",{"v":40000,"d":"40,000"},{"v":40000,"d":"40,000"},{"$f":"Příjmy[[#This Row],[Skutečnost]]-Příjmy[[#This Row],[Předpoklad]]","v":0}]
[null,"Příjem 2",{"v":14000,"d":"14,000"},{"v":15000,"d":"15,000"},{"$f":"Příjmy[[#This Row],[Skutečnost]]-Příjmy[[#This Row],[Předpoklad]]","v":{"v":1000,"d":"1,000"}}]
[null,"Ostatní příjmy",{"v":3000,"d":"3,000"},0,{"$f":"Příjmy[[#This Row],[Skutečnost]]-Příjmy[[#This Row],[Předpoklad]]","v":{"v":-3000,"d":"-3,000"}}]
[null,"Celkové příjmy",{"$f":"SUBTOTAL(109,Příjmy[Předpoklad])","v":{"v":57000,"d":"57,000"}},{"$f":"SUBTOTAL(109,Příjmy[Skutečnost])","v":{"v":55000,"d":"55,000"}},{"$f":"SUBTOTAL(109,Příjmy[Rozdíl])","v":{"v":-2000,"d":"-2,000"}}]

{"sheet":"Měsíční výdaje","index":2,"n_rows":26,"n_cols":5,"rows_kept":26}
[null,{"$f":"Jméno","v":"Název"}]
[null,{"$f":"NadpisRozpočtu","v":"Rodinný rozpočet"}]
[null,{"$f":"Měsíc","v":"leden"}]
[null,{"$f":"Rok","v":2017}]
[null,"Měsíční výdaje","Předpoklad","Skutečnost","Rozdíl"]
[null,"Bydlení",{"v":11000,"d":"11,000"},{"v":11000,"d":"11,000"},{"$f":"Výdaje[[#This Row],[Předpoklad]]-Výdaje[[#This Row],[Skutečnost]]","v":0}]
[null,"Potraviny",{"v":6000,"d":"6,000"},{"v":7000,"d":"7,000"},{"$f":"Výdaje[[#This Row],[Předpoklad]]-Výdaje[[#This Row],[Skutečnost]]","v":{"v":-1000,"d":"-1,000"}}]
[null,"Telefon",380,380,{"$f":"Výdaje[[#This Row],[Předpoklad]]-Výdaje[[#This Row],[Skutečnost]]","v":0}]
[null,"Elektřina/plyn",{"v":1250,"d":"1,250"},{"v":1400,"d":"1,400"},{"$f":"Výdaje[[#This Row],[Předpoklad]]-Výdaje[[#This Row],[Skutečnost]]","v":-150}]
[null,"Vodné/stočné/odpad",900,850,{"$f":"Výdaje[[#This Row],[Předpoklad]]-Výdaje[[#This Row],[Skutečnost]]","v":50}]
[null,"Kabelová televize",490,550,{"$f":"Výdaje[[#This Row],[Předpoklad]]-Výdaje[[#This Row],[Skutečnost]]","v":-60}]
[null,"Internet",400,400,{"$f":"Výdaje[[#This Row],[Předpoklad]]-Výdaje[[#This Row],[Skutečnost]]","v":0}]
[null,"Údržba/opravy",0,700,{"$f":"Výdaje[[#This Row],[Předpoklad]]-Výdaje[[#This Row],[Skutečnost]]","v":-700}]
[null,"Péče o děti",{"v":3000,"d":"3,000"},{"v":2500,"d":"2,500"},{"$f":"Výdaje[[#This Row],[Předpoklad]]-Výdaje[[#This Row],[Skutečnost]]","v":500}]
[null,"Školné",{"v":10000,"d":"10,000"},{"v":10000,"d":"10,000"},{"$f":"Výdaje[[#This Row],[Předpoklad]]-Výdaje[[#This Row],[Skutečnost]]","v":0}]
[null,"Domácí zvířata",{"v":1500,"d":"1,500"},{"v":1600,"d":"1,600"},{"$f":"Výdaje[[#This Row],[Předpoklad]]-Výdaje[[#This Row],[Skutečnost]]","v":-100}]
[null,"Doprava",{"v":3300,"d":"3,300"},{"v":3100,"d":"3,100"},{"$f":"Výdaje[[#This Row],[Předpoklad]]-Výdaje[[#This Row],[Skutečnost]]","v":200}]
[null,"Osobní péče",{"v":1200,"d":"1,200"},{"v":1000,"d":"1,000"},{"$f":"Výdaje[[#This Row],[Předpoklad]]-Výdaje[[#This Row],[Skutečnost]]","v":200}]
[null,"Pojištění",850,850,{"$f":"Výdaje[[#This Row],[Předpoklad]]-Výdaje[[#This Row],[Skutečnost]]","v":0}]
[null,"Kreditní karty",300,300,{"$f":"Výdaje[[#This Row],[Předpoklad]]-Výdaje[[#This Row],[Skutečnost]]","v":0}]
[null,"Půjčky",0,0,{"$f":"Výdaje[[#This Row],[Předpoklad]]-Výdaje[[#This Row],[Skutečnost]]","v":0}]
[null,"Daně",0,0,{"$f":"Výdaje[[#This Row],[Předpoklad]]-Výdaje[[#This Row],[Skutečnost]]","v":0}]
[null,"Dárky/charita",150,150,{"$f":"Výdaje[[#This Row],[Předpoklad]]-Výdaje[[#This Row],[Skutečnost]]","v":0}]
[null,"Spoření",{"v":13000,"d":"13,000"},{"v":12000,"d":"12,000"},{"$f":"Výdaje[[#This Row],[Předpoklad]]-Výdaje[[#This Row],[Skutečnost]]","v":{"v":1000,"d":"1,000"}}]
[null,"Jiné",0,0,{"$f":"Výdaje[[#This Row],[Předpoklad]]-Výdaje[[#This Row],[Skutečnost]]","v":0}]
[null,"Celkem",{"$f":"SUBTOTAL(109,Výdaje[Předpoklad])","v":{"v":53720,"d":"53,720"}},{"$f":"SUBTOTAL(109,Výdaje[Skutečnost])","v":{"v":53780,"d":"53,780"}},{"$f":"SUBTOTAL(109,Výdaje[Rozdíl])","v":-60}]

{"sheet":"DATA GRAFU","index":3,"n_rows":6,"n_cols":4,"rows_kept":6,"hidden":true}
[null,"DATA GRAFU"]
[]
[null,null,"Předpoklad","Skutečnost"]
[null,"Finanční tok",{"$f":"FinančníTok[[#Totals],[Předpoklad]]","v":3280},{"$f":"FinančníTok[[#Totals],[Skutečnost]]","v":1220}]
[null,"Měsíční příjmy",{"$f":"Příjmy[[#Totals],[Předpoklad]]","v":57000},{"$f":"Příjmy[[#Totals],[Skutečnost]]","v":55000}]
[null,"Měsíční výdaje",{"$f":"Výdaje[[#Totals],[Předpoklad]]","v":53720},{"$f":"Výdaje[[#Totals],[Skutečnost]]","v":53780}]